Cogmind - Beta 11 @@@ ROGUE MODE // 2022.04.16 @ 23:29:57 Player: RNGesus Result: Destroyed by 8R-AWN with 8R-AWN's Boregun Performance ------------- Evolutions (0) 0 Regions Visited (3) 600 Robots Destroyed (21) 105 Value Destroyed (542) 542 Prototype IDs (24) 480 Alien Tech Used (0) 0 Bonus (40) 40 TOTAL SCORE: 1767 Bonus ------- High Alert Combat Kills 8 Aligned with FarCom 300 Friendly Fire -268 Cogmind --------- Core Integrity 0/250 Matter 219/300 Energy 39/100 System Corruption 1% Temperature Cool (76) Movement Core (1500) Ox29 Location -10/Exiles Parts ------- > --- POWER (1) -------- (None) > --- PROPULSION (2) --- (None) > --- UTILITY (2) ------ Huge Storage Unit Light Armor Plating > --- WEAPON (2) ------- Assault Cannon > --- INVENTORY (25) --- Light Nuclear Core Light Treads Improved Flight Unit Improved Flight Unit Experimental Sensor Array Seismic Detector Improved Targeting Computer Cloak of Protection Weapon Shielding Weapon Shielding Improved Weapon Shielding Hardlight Generator Rocket Launcher Rocket Launcher Rocket Launcher Rocket Launcher Deploy-a-Sentry Deploy-a-Sentry Deploy-a-Sentry Peak State ------------ > --- POWER ------------ Light Ion Engine > --- PROPULSION ------- Light Treads Light Treads > --- UTILITY ---------- Huge Storage Unit Light Armor Plating > --- WEAPON ----------- EM Pulse Gun Assault Cannon > --- INVENTORY -------- Light Nuclear Core Light Treads Improved Flight Unit Improved Flight Unit Experimental Sensor Array Seismic Detector Improved Targeting Computer Cloak of Protection Weapon Shielding Weapon Shielding Improved Weapon Shielding Hardlight Generator EM Pulse Gun Rocket Launcher Rocket Launcher Rocket Launcher Rocket Launcher Proton Bomb Trap Proton Bomb Trap Proton Bomb Trap Proton Bomb Trap Proton Bomb Trap Deploy-a-Sentry Deploy-a-Sentry Deploy-a-Sentry [Rating: 16] Favorites ----------- Power Light Ion Engine Engine Light Ion Engine Propulsion Light Treads Treads Light Treads Wheel Wheel Flight Unit Improved Flight Unit Utility Huge Storage Unit Storage Huge Storage Unit Processor Improved Targeting Computer Protection Light Armor Plating Weapon Light Assault Rifle Energy Gun EM Pulse Gun Ballistic Gun Light Assault Rifle Ballistic Cannon Assault Cannon Launcher Rocket Launcher Build | -11 -10 -10 -10 ------- Run | Scr Mat Min Exi Slots Evolved . | . . . . Power . | . . . . Propulsion . | . . . . Utility . | . . . . Weapon . | . . . . Parts Attached 30 | 7 14 5 4 Power 5 | 2 2 1 . Engine 5 | 2 2 1 . Core . | . . . . Reactor . | . . . . Propulsion 7 | 2 4 1 . Treads 5 | 2 2 1 . Leg . | . . . . Wheel 1 | . 1 . . Hover . | . . . . Flight 1 | . 1 . . Utility 5 | 1 3 1 . Device . | . . . . Storage 3 | 1 2 . . Processor 1 | . 1 . . Hackware . | . . . . Protection 1 | . . 1 . Artifact . | . . . . Weapon 13 | 2 5 2 4 Energy Gun 4 | 1 . 1 2 Energy Cannon . | . . . . Ballistic Gun 4 | 1 3 . . Ballistic Cannon 2 | . . 1 1 Launcher 3 | . 2 . 1 Special Weapon . | . . . . Impact Weapon . | . . . . Slashing Weapon . | . . . . Piercing Weapon . | . . . . Special Melee Weapon . | . . . . Unidentified Prototypes 1 | . 1 . . Parts Lost 9 | . . 4 5 Power 2 | . . 1 1 Propulsion 3 | . . 1 2 Utility . | . . . . Weapon 4 | . . 2 2 Highest Loss Streak 5 | . . 3 5 To Critical Strikes 2 | . . . 2 Average Slot Usage (%) 95 | . 90 95 99 Engine 13 | . 14 13 13 Treads 26 | . 27 23 27 Wheel 1 | . . 3 . Storage 14 | . 14 14 14 Processor 4 | . 5 7 . Protection 6 | . . 6 14 Energy Gun 9 | . 5 9 14 Ballistic Gun 10 | . 22 8 . Ballistic Cannon 6 | . . 6 13 Naked Turns . | . . . . Heaviest Build 93 | 13 87 93 93 Greatest Support 40 | 40 40 40 40 Greatest Overweight (x) 8 | 4 8 8 2 Average Overweight (x) 2 | . . 4 2 Largest Inventory Capacity 25 | 8 25 25 25 Average Capacity 21 | 7 15 25 25 Most Carried 25 | 4 15 21 25 Average Carried 17 | 2 12 19 22 Final Capacity 25 | 8 25 25 25 Final Carried 21 | 3 14 21 19 Class Distribution -------------------- 100% | Mutant Dominant Class ---------------- Mutant | -10/Materials Mutant | -10/Mines Mutant | -10/Exiles Resources | -11 -10 -10 -10 ----------- Run | Scr Mat Min Exi Matter Collected 710 | 233 309 168 . Remotely . | . . . . Salvage Created 766 | . 374 380 12 Parts 42 | . 27 15 . Haulers Intercepted 1 | . 1 . . Recyclers Shooed 2 | . 1 1 . Parts Field Recycled . | . . . . Retrieved Matter . | . . . . Parts Self-Destructed . | . . . . Prevented . | . . . . Kills | -11 -10 -10 -10 ------- Run | Scr Mat Min Exi Combat Hostiles Destroyed 20 | . 11 4 5 Guns 11 | . 7 4 . AOE 9 | . 4 . 5 Classes Destroyed 7 | . 4 2 1 Worker 2 | . . 2 . Hauler 1 | . 1 . . Recycler 2 | . . 2 . Watcher 1 | . 1 . . Swarmer 3 | . 3 . . Grunt 12 | . 8 4 . Assembled 6 | . . . 6 Best Kill Streak 5 | . 4 2 5 Combat Bots Only 5 | . 4 2 5 Max Kills in Single Turn 3 | . 2 1 3 Gunslinging . | . . . . Exploded 3 | . 2 . 3 Melee . | . . . . Uniques/NPCs Destroyed . | . . . . Combat | -11 -10 -10 -10 -------- Run | Scr Mat Min Exi Damage Taken 1203 | . 469 396 338 Core 267 | . 102 62 103 Absorbed by Shields . | . . . . Core Remaining (%) 100 | 100 . . . Volleys Fired 95 | . 56 27 12 Largest 2 | . 2 2 2 Hottest 80 | . 60 60 80 Shots Fired 167 | . 104 46 17 Gun 151 | . 96 42 13 Cannon 5 | . . 4 1 Launcher 11 | . 8 . 3 Special . | . . . . Kinetic 130 | . 89 40 1 Thermal . | . . . . Explosive 11 | . 8 . 3 Electromagnetic 26 | . 7 6 13 Robot Hit Streak 14 | . 14 14 13 Robot Miss Streak 3 | . 3 3 3 Penetration Max . | . . . . Secondary Targets . | . . . . Shots Hit Robots 121 | . 76 31 14 Core Hits 56 | . 28 17 11 Critical Kills . | . . . . Critical Parts Destroyed . | . . . . Critical Strikes . | . . . . Melee Attacks . | . . . . Impact . | . . . . Slashing . | . . . . Piercing . | . . . . Sneak Attacks . | . . . . Combat Hostiles . | . . . . Follow-up Attacks . | . . . . Damage Inflicted 1931 | . 1206 315 410 Guns 898 | . 615 271 12 Cannons 69 | . . 44 25 Explosions 964 | . 591 . 373 Melee . | . . . . Ramming . | . . . . Kinetic 791 | . 521 245 25 Thermal . | . . . . Explosive 964 | . 591 . 373 Electromagnetic 176 | . 94 70 12 Impact . | . . . . Slashing . | . . . . Piercing . | . . . . Highest Corruption 1 | . 1 1 1 Average Corruption 1 | . 1 1 1 Corruption Purged . | . . . . Corruption Blocked . | . . . . Effects 24 | . 5 11 8 Message Errors 9 | . 1 7 1 Matter Fused 8 | . 3 2 3 Heat Flow Errors 2 | . . 1 1 Energy Discharges 1 | . . . 1 Data Loss (minor) 4 | . 1 1 2 Overload Shots . | . . . . Overflow Damage 24 | . 5 . 19 Projectiles . | . . . . Explosions 24 | . 5 . 19 Melee . | . . . . Knockbacks 1 | . . . 1 Impact . | . . . . Kinetic 1 | . . . 1 Secondary . | . . . . Self-Inflicted Damage . | . . . . Shots . | . . . . Rammed . | . . . . Targets Rammed . | . . . . Kicked . | . . . . Crushed . | . . . . Highest Temperature 264 | . 46 264 199 Average Temperature 46 | . 11 52 85 Received Heat Transfer 453 | . 207 246 . Siege Activations . | . . . . Robots Corrupted . | . . . . Combat Hostiles . | . . . . Parts Fried . | . . . . Impact Corruptions . | . . . . Robots Melted . | . . . . Combat Hostiles . | . . . . Parts Melted . | . . . . Heat Transferred . | . . . . Parts Sabotaged . | . . . . Parts Stolen . | . . . . Parts Stripped . | . . . . Power Chain Reactions . | . . . . Missiles Intercepted . | . . . . Alert | -11 -10 -10 -10 ------- Run | Scr Mat Min Exi Peak Influence 419 | . 419 182 . Initial 122 | . . 122 . Average 101 | . 186 43 . Maximum Alert Level 2 | . 2 . . Low Security (%) 77 | 100 45 100 . Level 1 22 | . 53 . . Level 2 . | . . . . Level 3 . | . . . . Level 4 . | . . . . Level 5 . | . . . . High Security . | . . . . Max Security . | . . . . Squads Dispatched 4 | . 3 1 . Investigation 2 | . 1 1 . Extermination . | . . . . Reinforcement 2 | . 2 . . Assault . | . . . . Garrison . | . . . . Intercept . | . . . . Searches Triggered . | . . . . Construction Impeded . | . . . . Haulers Reinforced . | . . . . Active Scanning Responses . | . . . . Cargo Convoy Interrupts . | . . . . Stealth | -11 -10 -10 -10 --------- Run | Scr Mat Min Exi Distress Signals 4 | . 4 . . Communications Jammed . | . . . . Distress Signals . | . . . . Times Spotted 38 | . 25 6 7 Peak Tracking Total 8 | . 6 2 8 Tactical Retreats 4 | . 3 1 . Traps | -11 -10 -10 -10 ------- Run | Scr Mat Min Exi Traps Triggered 4 | . 3 1 . Indirectly . | . . . . Trap Hack Attempts . | . . . . Triggered . | . . . . Disarmed . | . . . . Reprogrammed . | . . . . Reused 1 | . . . 1 Traps Extracted . | . . . . Installed 4 | . . . 4 Triggered . | . . . . Most Traps Carried 5 | . . 5 5 Machines | -11 -10 -10 -10 ---------- Run | Scr Mat Min Exi Machines Disabled 5 | . 2 . 3 Max in Single Turn 2 | . 1 . 2 Machines Sabotaged . | . . . . Garrisons Compromised . | . . . . Overloaded Fab Kills . | . . . . Hacking | -11 -10 -10 -10 --------- Run | Scr Mat Min Exi Machines Accessed 8 | . 4 2 2 Terminals 3 | . 3 . . Fabricators . | . . . . Repair Stations 1 | . 1 . . Recycling Units . | . . . . Scanalyzers . | . . . . Garrison Access . | . . . . Total Hacks 19 | . 9 2 8 Successful 14 | . 4 2 8 Failed 5 | . 5 . . Catastrophic . | . . . . Database Lockouts . | . . . . Manual 6 | . 5 . 1 Terminals 7 | . 7 . . Fabricators . | . . . . Repair Stations 2 | . 2 . . Recycling Units . | . . . . Scanalyzers . | . . . . Garrison Access . | . . . . Terminal Hacks 13 | . 3 2 8 Record 7 | . . . 7 Part Schematic 1 | . 1 . . Robot Analysis 2 | . 2 . . Open Door 2 | . . 2 . EX-Prototype ID Bank 1 | . . . 1 Fabricator Hacks . | . . . . Repair Station Hacks 1 | . 1 . . Scan Component 1 | . 1 . . Recycling Unit Hacks . | . . . . Scanalyzer . | . . . . Garrison Access Hacks . | . . . . Unauthorized Hacks . | . . . . Terminals . | . . . . Fabricators . | . . . . Repair Stations . | . . . . Recycling Units . | . . . . Scanalyzers . | . . . . Garrison Access . | . . . . Data Cores Recovered . | . . . . Used . | . . . . Hacking Detections 4 | . 4 . . Full Trace Events . | . . . . Feedback Events . | . . . . Feedback Blocked . | . . . . Robot Schematics Acquired . | . . . . Robots Built . | . . . . Authchips . | . . . . Time . | . . . . Total Robot Build Rating . | . . . . Part Schematics Acquired 1 | . 1 . . Parts Built . | . . . . Authchips . | . . . . Time . | . . . . Total Part Build Rating . | . . . . Parts Repaired . | . . . . Time . | . . . . Parts Recycled . | . . . . Recycled Matter . | . . . . Retrieved Matter . | . . . . Retrieved Components . | . . . . Parts Scanalyzed . | . . . . Part Schematics Acquired . | . . . . Parts Damaged . | . . . . Bothacking | -11 -10 -10 -10 ------------ Run | Scr Mat Min Exi Used RIF Installer . | . . . . Robots Hacked . | . . . . Non-combat . | . . . . Combat . | . . . . Robot Hacks Applied . | . . . . Relay Couplers Released . | . . . . Fabnet Peak Effective % . | . . . . Robots Rewired . | . . . . Allies Hacked . | . . . . Hacks Repelled . | . . . . Allies | -11 -10 -10 -10 -------- Run | Scr Mat Min Exi Total Allies . | . . . . Largest Group . | . . . . Highest-Rated Group . | . . . . Highest-Rated Ally . | . . . . Total Orders . | . . . . Ally Attacks . | . . . . Total Damage . | . . . . Kills . | . . . . Allies Corrupted . | . . . . Allies Melted . | . . . . Intel | -11 -10 -10 -10 ------- Run | Scr Mat Min Exi Robot Analysis Total 2 | . 2 . . Derelict Logs Recovered 1 | . . 1 . Drone Launches . | . . . . Drone Recoveries . | . . . . Exploration | -11 -10 -10 -10 ------------- Run | Scr Mat Min Exi Turns Passed 3756 | 66 1124 1530 1036 Spaces Moved 1456 | 39 585 526 306 Core 24 | 24 . . . Treads 1216 | 15 563 332 306 Legs . | . . . . Wheels 216 | . 22 194 . Hover . | . . . . Flight . | . . . . Fastest Speed 50 | 50 160 200 320 Average Speed 235 | 138 161 275 320 Slowest Speed 320 | 250 200 320 320 Overloaded Moves . | . . . . Propulsion Burnouts . | . . . . Robots Hopped . | . . . . Cave-ins Triggered . | . . . . Exploration Rate (%) 60 | 5 96 90 51 Regions Visited 3 Branch Regions 2 Pre-discovered Areas 3 | . . 2 1 Known Exits Taken . | . . . . Unknown Exits Taken 3 | 1 1 1 . Scrap Searched 1 | . . 1 . Spaces Dug . | . . . . Terrain Destroyed 55 | . 35 2 18 Melee . | . . . . Projectile 2 | . . 2 . AOE 53 | . 35 . 18 Terrain Rammed . | . . . . Walls Destroyed . | . . . . Machines Disabled . | . . . . Actions | -11 -10 -10 -10 --------- Run | Scr Mat Min Exi Total 1644 | 48 677 568 351 Wait 2 | . . . 2 Move 1453 | 38 584 525 306 Hop . | . . . . Pick Up 39 | 3 15 10 11 Fast Attach 9 | 5 2 2 . Attach 6 | 1 1 3 1 Detach 3 | . 2 1 . Swap 15 | 1 11 . 3 Drop 18 | . 6 . 12 Fire 95 | . 56 27 12 Melee . | . . . . Ram . | . . . . Kick . | . . . . Crush . | . . . . Escape Stasis . | . . . . Rewire . | . . . . Trap 4 | . . . 4 Miscellaneous . | . . . . Route ------- -11/Scrapyard -10/Materials (discovered 5 exits: [*Mat x3] / *Min x2) -10/Mines (discovered 2 exits: [*Mat] / *Exi) -10/Exiles History --------- Turn | Location | Event 9 | -11/Scrapyard | Discovered new exit (range 16) 67 | -11/Scrapyard | Entered Materials 311 | -10/Materials | Build established: Mutant 347 | -10/Materials | Discovered new exit (range 9) 388 | -10/Materials | Discovered new exit (range 13) 511 | -10/Materials | Discovered new exit (range 10) 609 | -10/Materials | Discovered new exit (range 15) 733 | -10/Materials | Discovered new exit (range 8) 1191 | -10/Materials | Entered Mines 1192 | -10/Mines | Learned location of Storage (-8) 1260 | -10/Mines | Met a Derelict who couldn't figure out how to use a Trap Extractor 1323 | -10/Mines | Found a hidden stash of uninstalled traps 1446 | -10/Mines | Learned location of Mines (-9) 1532 | -10/Mines | Core integrity fell below 50% 1712 | -10/Mines | Lost 3 parts (1p2w) 1833 | -10/Mines | Found a damaged Exp. Sensor Array with a note attached 1839 | -10/Mines | Found Prototype Device 2002 | -10/Mines | Discovered new exit (range 6) 2048 | -10/Mines | Met a Derelict shopkeep closing up shop 2248 | -10/Mines | Received a Rocket Launcher from a helpful Derelict 2708 | -10/Mines | Deemed a non-threat by the Exiles lab entrance 2708 | -10/Mines | Discovered new exit (range 5) 2721 | -10/Mines | Entered Exiles 2915 | -10/Exiles | Met 8R-AWN 2966 | -10/Exiles | Met EX-HEX 3055 | -10/Exiles | Met EX-BIN 3107 | -10/Exiles | Aligned with FarCom system 3110 | -10/Exiles | Given EX-Vault access code 3196 | -10/Exiles | Met EX-DEC 3215 | -10/Exiles | Learned location of Zion (-6) 3375 | -10/Exiles | Opened EX-Vault 3398 | -10/Exiles | Found Deploy-a-Sentry 3402 | -10/Exiles | Found Deploy-a-Sentry 3406 | -10/Exiles | Found Deploy-a-Sentry 3410 | -10/Exiles | Found Cloak of Protection 3482 | -10/Exiles | Warned to stay clear of 0b10 Research branches 3724 | -10/Exiles | Attacked by the Exiles 3740 | -10/Exiles | Core integrity fell below 20% 3757 | -10/Exiles | Destroyed by 8R-AWN with 8R-AWN's Boregun Last Messages --------------- 03744_ Penetrated by HV Slug. 03744_ Lgt. Ion Engine destroyed. 03744_ HV Slug penetrates Wall. 03746_ Penetrated by HV Slug. 03746_ HV Slug penetrates Wall. 03748_ The unstable cave ceiling collapses. 03748_ Penetrated by HV Slug. 03748_ HV Slug penetrates Wall. 03748_ Penetrated by HV Slug. 03748_ Critical hit (Destroy). 03748_ EM Pulse Gun destroyed. 03751_ Penetrated by HV Slug. 03753_ Critical hit (Destroy). 03753_ Lgt. Treads destroyed. 03755_ Penetrated by HV Slug. 03755_ EM Pulse Gun destroyed. 03756_ 8R-AWN knocked back. 03757_ Penetrated by HV Slug. 03757_ Critical hit (Destroy). 03757_ Penetrated by HV Slug. Map ----- +----------------------------------------------------+ | """#??????????????????????????????????? | | """#??????????????????????????????????? | | """#??????????????????????????????????? | | """#??????????????????????????????????? | | """#??????????????????????????????????? | | """"??????????????????????????????????? | | """#??????????????????????????????????? | | "X" """???????????????????????????????????? | | """ #??????????????????????????????????? | | """""""""#??????????????????????????????????? | | ###########??????????????????????????????????? | | #????????????????????????????????????????????? | | #????????????????????????????????????????????? | | ##???????????????????????????????????????????? | | ##???####;######????????????????????????????? | | #####"""" """"##???????????????????????????? | | " """ """"##??????????????????????????? | | "" " #??????????????????????????? | | " """#??????????????????????????? | | a"#???????????#####??????????? | | " "##?????????##" #??????????? | | "###???????#" & #??????????? | | "" ""#??????##"^^ ##?????????? | | #""" "#????###^^ ###???????? | | #####""" ##???# ######### | | ????##""" @##?## #""""## | | ?????#"""" ### | | ?????#"" ## | | ????#"""" g #### | | ???"" %% ""#?#"""""#### | | ?"" #"""##?#######??#### | | ######??????????????## | | ? ##????????????????????? | | ##?????????????????????? | | ? "" " " #??????????????????????? | | ? ##""" " " "" % "##??????????????????????? | | ????####""" """ "##???????????????????????? | | ???????###""""#?# # ##????????????????????????? | | ?????????####????? #??????????????????????????? | | ?????????????????????#???????????????????????????? | | ?????????????????????????????????????????????????? | | ?????????????????????????????????????????????????? | | ?????????????????????????????????????????????????? | | ?????????????????????????????????????????????????? | | ?????????????????????????????????????????????????? | | ?????????????????????????????????????????????????? | | ?????????????????????????????????????????????????? | | ?????????????????????????????????????????????????? | | ?????????????????????????????????????????????????? | | ?????????????????????????????????????????????????? | +----------------------------------------------------+ Best States ------------- Heat Dissipation 25 Energy Generation 10 Energy Capacity 250 Matter Stores 300 Matter Capacity 300 Sight Range 16 Terrain Scan Density 10 Armor Coverage 150 Evasion (%) 50 Targeting Accuracy 6 Recoil Reduction 2 Item Schematics ----------------- Huge Storage Unit | -10/Materials | Hacked Robot Schematics ------------------ None Fabricated ------------ Nothing Alien Tech Used ----------------- None Achievements -------------- None Challenges ------------ None Game ------ Seed MicroQuantumBlaster Manual? 0 Play Time 00:15:51 Cumulative 337.4 hours Start 2022.04.16 @ 22:54:39 End 2022.04.16 @ 23:29:57 Sessions 1 Manual Loads 0 Difficulty Rogue Special Mode None Game No. 493 Rogue 493 Adventurer 0 Explorer 0 Win Type - Total 6 Types 4/0/1/1/0/0/0/0/0 Lore% 81 Gallery% 84 Achievement% 66 Wizard Run 0 Options --------- ASCII 0 Keyboard 1 Movement Numpad Keybinds 0 Fullscreen 2 Font 24/Smallcaps Map View 76x50 Tactical HUD 1 Map Filters NONE Filters NONE Steam 1 RUN: e89415d5-e3e2-4c5a-90c7-9b0beb991040